Workbook

Sheet PI Completion Guide
A1: Project Implementation
A3: The section provides a guideline for the completion of the pricing for the implementation of the project.
A5: Project resources
A6: 1. The project resources includes the resources that will form part of the working committee to report on the progress of the project.
A7: 2. Example of the project resources are project manager, training manager, technical team lead, change manager etc.
A8: 3. The number of resouces indicate how many of the resources listed will be required to execute the project.
A9: 4. If a resource is needed to for a specific component of the solution the applicable software solution must be completed e.g. a change manager could be required for a specific software solution, if another change manager is required for a different software solution that resource should be listed on another line.
A10: 5. The rate per hour is the rate that will be charged for the specific resource.
A11: 6. The hours required is the number of hours that the specific resource will be required per year and should be aligned to the flight plan e.g. the change manager will be required at the beginning of an iteration to provide guidance to TFR People Change and during the execution of the deployment of the solution.
A12: 7. The price for each year is the rate per hour multiplied by the number of hours per year for a specific resource.
A13: 8. The total for 3 years is the sum of the price for each year.
A15: The baseline working hours should be calculated as follow:
A16: Days in a year | G16: 365
A17: Subtract New Year's Day | G17: 1
A18: Start work say on Jan 10 | G18: 9 | H18: Days; At least one weekend. 2 weekends if New Years day falls on Friday, Saturday, or Sunday
A19: Subract Reconciliation Day, Christmas, and Boxing day | G19: 3
A20: Stop work on Dec 15 | G20: 13 | H20: Days (non-holiday) from Dec 16 t0 Dec 31; 2 weekends
A21: Subtract on average 6 other non-weekend holidays during the year | G21: 6
A23: Working days: | C23: =G16 - G17 - G18 - G19 - G20 - G21 -> 333
A24: Less 49 weekends | C24: =C23 - 98 -> 235
A25: Working Hours per year | C25: =C24 * 8.5 -> 1997.5
A27: Tecnical resources
A28: 1. The technical resources includes the resources that will build the solution during execution.
A29: 2. Example of the technical resources are functional specialist, integration specialist, database specialist, technical specialist etc.
A30: 3. The number of resouces indicate how many of the resources listed will be required to execute the project.
A31: 4. If a resource is needed to for a specific component of the solution the applicable software solution must be completed e.g. a functional specialist could be required for a specific software solution, if another functional specialist is required for a different software solution that resource should be listed on another line.
A32: 5. The rate per hour is the rate that will be charged for the specific resource.
A33: 6. The hours required is the number of hours that the specific resource will be required per year and should be aligned to the flight plan e.g. the functional specialist for the simulation will be required until all simulation scenarios are completed.
A34: 7. The price for each year is the rate per hour multiplied by the number of hours per year for a specific resource.
A35: 8. The total for 3 years is the sum of the price for each year.
A37: Stabilisation resources
A38: 1. This section focus on the resources that will be required after implementation and deployment to provide hypercare during the 6 month stabilisation period.
A39: 2. The same rules as for project and technical resources will apply.
A41: Software subscription during implementation
A42: 1. Each proposed software solution must be listed on this section for pricing purposes.
A43: 2. The solutions must align with the proposed solution design presented in the architecture section.
A44: 3. The cost of licences for each user during implementation perio must be defined.
A45: 4. Where shared licenses are applicable the cost of shared licenses must be specified.
A46: 5. The number of licences required for the building and testing of the solution must be specified. The number should include the TFR employees that should have access to the solution.
A47: 6. The year in which the licenses will be required must be indicated and aligned to the flight plan e.g. the simulation solution will commnece in year 1 and monitoring and execution solution build will commence in year 3
A48: 7. The total price of the licenses per year is the sum of the number of users multiplied by either the cost of individual licenses or cost of shared licenses.
A49: 8. The total price is the sum of the licence prices for each year of imlenentation.
A51: Training Material
A52: 1. Each proposed software solution must be listed on this section for compilation of training material.
A53: 2. The number of user roles will define the best practice roles for the solution e.g. Administrator, End user, user with view capabilities, navigation training.
A54: 3. The cost must include the development of the training material for all the roles in a hard copy and e-learning format.
A55: 4. The year in which the training material will be develop and completed must be aligned to the flight plan.
A56: 5. Price for each year will be based on the cost to compile training material in the specific year.
A57: 6. The total for the 3 years are the sum of the price for each individual software solution for year 1 to year 3.

Sheet Project Implementation (PI)
B1: Pricing template for submission with ITP Tender | E1: All prices must be provided in Rands
A4: 1 | B4: Implementation costs
A6: 3,5 year implementation pricing
B7: Project resources | C7: Number of resources | D7: Applicable software solution | E7: Rate per hour | F7: Hours required for year 1 | G7: Price for year 1 | H7: Hours required for year 2 | I7: Price for year 2 | J7: Hours required for year 3 | K7: Price for year 3 | L7: Total for 3 years
B8: e.g. Project Manager | C8: 1 | E8: R800 | F8: 1998 | G8: =F8*E8 -> R1,598,400 | H8: 1998 | I8: =H8*E8 -> R1,598,400 | J8: 1998 | K8: =J8*E8 -> R1,598,400 | L8: =G8+I8+K8 -> R4,795,200
B15: Project resources Total | L15: =SUM(L8:L14) -> R4,795,200
B16: Technical resources | C16: Number of resources | D16: Applicable software solution | E16: Rate per hour | F16: Hours required for year 1 | G16: Price for year 1 | H16: Hours required for year 2 | I16: Price for year 2 | J16: Hours required for year 3 | K16: Price for year 3 | L16: Total for 3 years
B17: e.g. Simulation SME | C17: 4 | D17: Simulation tool | E17: R1,200 | F17: 1998 | G17: =F17*E17*C17 -> R9,590,400 | H17: 1998 | I17: =H17*E17*C17 -> R9,590,400 | J17: 1500 | K17: =J17*E17*C17 -> R7,200,000 | L17: =K17+I17+G17 -> R26,380,800
B22: Technical resources total
B23: Resource Totals | L23: =SUM(L17:L22) -> R26,380,800
B24: 6 month stabilisation resources
B25: Stabilisation resources | C25: Number of resources | D25: Applicable software solution | E25: Rate per hour | F25: Hours required for month 1 | G25: Hours required for month 2 | H25: Hours required for month 3 | I25: Hours required for month 4 | J25: Hours required for month 5 | K25: Hours required for month 6 | L25: Total for 6 months
B26: e.g. Project Manager | C26: 1 | E26: R800 | F26: 180 | G26: 180 | H26: 180 | I26: 180 | J26: 180 | K26: 180 | L26: =(K26+J26+I26+H26+G26+F26)*E26*C26 -> R864,000
L29: =SUM(L26:L28) -> R864,000
B31: Software subscription during implementation
B32: Proposed solution | C32: Cost of license | E32: Number of licenses required (including TFR resources) | F32: Year in which licenses will be required | G32: Price for year 1 | I32: Price for year 2 | K32: Price for year 3 | L32: Total for 3 years
B33: e.g. Simulation tool | C33: R3,500 | E33: 10 | F33: Year 1 | G33: =E33*C33 -> R35,000 | I33: =E33*C33 -> R35,000 | K33: =E33*C33 -> R35,000 | L33: =K33+I33+G33 -> R105,000
B38: Software subscription totals | L38: =SUM(L33:L37) -> R105,000
B39: Training Material
B40: Proposed solution | C40: Number of user roles | D40: Cost of training material | E40: Year in which training material will be developed | G40: Price for year 1 | I40: Price for year 2 | K40: Price for year 3 | L40: Total for 3 years
B41: e.g. Simulation tool | C41: 3 | D41: R2,500 | E41: Year 2 | G41: R0 | I41: =D41*C41 -> R7,500 | K41: R0 | L41: =K41+I41+G41 -> R7,500
B46: Training Material totals | L46: =SUM(L41:L45) -> R7,500
A47: 3 year implementation total | L47: =L46+L38+L29+L23+L15 -> R32,152,500

Sheet SS Completion Guide
A1: Solution Subscription Costs
A3: 1. On proposed solution column list the applicable solution modules
A4: 2. Year indicate the year
A5: 3. Percentage increase per year(YoY) - indicate the percentage increase per module year on year.
A6: 4. Licence costs per user - indicate the licence costs per user per solution module
A7: 5. License cost per 100 users - indicate the total cost per module for 100 users
A8: 6. License cost per 1000 users - indicate the total cost per module for 1000 users
A9: 7. License cost per 2000 users - indicate the total cost per module for 2000 users
A10: 8. Ability to amend licenses on an annual basis e.g. true-up / true-down (Y/N) - indicate per solution module whether the licence costs can be amended on an annual basis
A12: An Example
C13: Proposed solution | D13: Year | E13: Percentage increase per year | F13: Licence cost per user | G13: License cost per 100 users | H13: Licence cost per 1000 users | I13: Licence cost for 2000 users | J13: Ability to amend licenses on an annual basis e.g. true-up / true-down (Y/N)
C14: Solution / Module A | D14: Year 1 | E14: 0 | F14: 800.00 | G14: 80000.00 | H14: 600000.00 | I14: 1150000.00 | J14: y
D15: Year 2 | E15: 10 | F15: 880.00 | G15: 88000.00 | H15: 660000.00 | I15: 1265000.00 | J15: y

Sheet Software subscription
A1: 2 | B1: Sofware subscription for 10 years
A3: Software subscription after implementation
B4: Proposed solution | C4: Year | D4: Percentage increase per year | E4: Licence cost per user | F4: License cost per 100 users | G4: Licence cost per 1000 users | H4: Licence cost for 2000 users | I4: Ability to amend licenses on an annual basis e.g. true-up / true-down (Y/N)
B5: Solution / Module A | C5: Year 1
C6: Year 2
C7: Year 3
C8: Year 4
C9: Year 5
C10: Year 6
C11: Year 7
C12: Year 8
C13: Year 9
C14: Year 10
A15: Solution A total
B16: Solution / Module B | C16: Year 1
C17: Year 2
C18: Year 3
C19: Year 4
C20: Year 5
C21: Year 6
C22: Year 7
C23: Year 8
C24: Year 9
C25: Year 10
A26: Solution B total
A27: Software Subcritption contract total

Sheet SME Completion Guide
B1: 1. Per Solution, subject matter expert hours will be required on a monthly basis to provide support for: 1. Resolution of production issues and problems 2. New requirements development and changes to existing funtionality on solution 3. Support queries 4. Knowledge Transfers 5. Solution Training 6. Operational Support where needed
B2: 2. Per solution provide the number of hours that will be needed to maintain and support the solution, the rate per hour and then the total cost per year, as per below example.
B3: 3. Note hours are allocated to a solution, not a fixed resource, this enables the bringing in of the required SME from resource pool to support where needed
B4: 4. Example Below
A7: No | B7: Proposed solution | C7: Description | D7: Hourly cost | E7: Hour requirement per month | F7: Percentage increase from Year n | G7: Total Cost Year 1 | H7: Total Cost Year 2 | I7: Total Cost Year 3 | J7: Total Cost Year 4 | K7: Total Cost Year 5 | L7: Total Cost Year 6 | M7: Total Cost Year 7 | N7: Total Cost Year 8 | O7: Monthly Total Year 9 | P7: Total Cost Year 10 | Q7: Total Cost
A8: 1 | B8: Solution: Simulation Tool | C8: Support Hours Allocated Monthly. Support Hourse Utlised for: 1. Average of 15 Days a Month Production Support, Incident & Problem Managment and Change Requests to systems 3. 20 Days per year allocated for Training and Skills Transfer Note: Hours can be increased or decreased with 3 months notice. Hours are managed quartely | D8: R800 | E8: 20 Days per month * 8 hours per day = 160 Hours Total Hours for year = 7360 Hours per year | F8: 5% | G8: =SUM(800*7360) -> R5,888,000.00 | H8: =SUM(G8,G8*0.05) -> R6,182,400.00 | I8: R6,491,520.00 | J8: =SUM(I8,I8*0.05) -> R6,816,096.00 | K8: R7,156,900.80 | L8: R7,514,745.84 | M8: R7,890,483.13 | N8: R8,285,007.29 | O8: R8,699,257.65 | P8: R9,134,220.54 | Q8: =SUM(G8:P8) -> R74,058,631.25
A9: 2 | B9: Solution: Production Plan | C9: Support Hours Allocated Monthly. Support Hourse Utlised for: 1. Average of 15 Days a Month Production Support, Incident & Problem Managment and Change Requests to systems 3. 20 Days per year allocated for Training and Skills Transfer Note: Hours can be increased or decreased with 3 months notice. Hours are managed quartely | D9: 800 | E9: 20 Days per month * 8 hours per day = 160 Hours Total Hours for year = 7360 Hours per year | F9: 5% | G9: =SUM(800*7360) -> R5,888,000.00 | H9: R6,182,400.00 | I9: R6,491,520.00 | J9: R6,816,096.00 | K9: R7,156,900.80 | L9: R7,514,745.84 | M9: R7,890,483.13 | N9: R8,285,007.29 | O9: R8,699,257.65 | P9: R9,134,220.54 | Q9: R74,058,631.25
A10: 3 | B10: Solution: Monitoring and Deviation Management | C10: Support Hours Allocated Monthly. Support Hourse Utlised for: 1. Average of 15 Days a Month Production Support, Incident & Problem Managment and Change Requests to systems 3. 20 Days per year allocated for Training and Skills Transfer | D10: 800 | E10: 20 Days per month * 8 hours per day = 160 Hours Total Hours for year = 7360 Hours per year | F10: 5% | G10: =SUM(800*7360) -> R5,888,000.00 | H10: R6,182,400.00 | I10: R6,491,520.00 | J10: R6,816,096.00 | K10: R7,156,900.80 | L10: R7,514,745.84 | M10: R7,890,483.13 | N10: R8,285,007.29 | O10: R8,699,257.65 | P10: R9,134,220.54 | Q10: R74,058,631.25
A11: 4 | B11: Solution: Capacity Plan | C11: Support Hours Allocated Monthly. Support Hourse Utlised for: 1. Average of 15 Days a Month Production Support, Incident & Problem Managment and Change Requests to systems 3. 20 Days per year allocated for Training and Skills Transfer | D11: 800 | E11: 20 Days per month * 8 hours per day = 160 Hours Total Hours for year = 7360 Hours per year | F11: 5% | G11: =SUM(800*7360) -> R5,888,000.00 | H11: R6,182,400.00 | I11: R6,491,520.00 | J11: R6,816,096.00 | K11: R7,156,900.80 | L11: R7,514,745.84 | M11: R7,890,483.13 | N11: R8,285,007.29 | O11: R8,699,257.65 | P11: R9,134,220.54 | Q11: R74,058,631.25
A12: 5 | B12: Solution: Base Plan | C12: Support Hours Allocated Monthly. Support Hourse Utlised for: 1. Average of 15 Days a Month Production Support, Incident & Problem Managment and Change Requests to systems 3. 20 Days per year allocated for Training and Skills Transfer | D12: 800 | E12: 20 Days per month * 8 hours per day = 160 Hours Total Hours for year = 7360 Hours per year | F12: 5% | G12: =SUM(800*7360) -> R5,888,000.00 | H12: R6,182,400.00 | I12: R6,491,520.00 | J12: R6,816,096.00 | K12: R7,156,900.80 | L12: R7,514,745.84 | M12: R7,890,483.13 | N12: R8,285,007.29 | O12: R8,699,257.65 | P12: R9,134,220.54 | Q12: R74,058,631.25
A13: SME Augmentation contract total | G13: =SUM(G8:G12) -> R29,440,000.00 | H13: R30,912,000.00 | I13: R32,457,600.00 | J13: R34,080,480.00 | K13: R35,784,504.00 | L13: R37,573,729.20 | M13: R39,452,415.66 | N13: R41,425,036.44 | O13: R43,496,288.27 | P13: R45,671,102.68 | Q13: R370,293,156.25

Sheet SME Augmentation
A4: No | B4: Proposed solution | C4: Number of resources | D4: Hourly cost | E4: Hour requirement per month | F4: Percentage increase from Year n | G4: Total Cost Year 1 | H4: Total Cost Year 2 | I4: Total Cost Year 3 | J4: Total Cost Year 4 | K4: Total Cost Year 5 | L4: Total Cost Year 6 | M4: Total Cost Year 7 | N4: Total Cost Year 8 | O4: Total Cost Year 9 | P4: Total Cost Year 10 | Q4: Total Cost
A5: 1 | Q5: =SUM(G5:P5) -> 0
A6: 2
A7: 3
A8: 4
A9: 5
A10: SME Augmentation contract total
